[Event "Early-Titled-Tuesday-Blitz-January-30-2024"]
[Site "Chess.com"]
[Date "2024.01.30"]
[Round "10"]
[White "nihalsarin"]
[Black "VitaliyBernadskiy"]
[Result "0-1"]
[WhiteElo "3150"]
[BlackElo "2926"]
[TimeControl "180+1"]
[EndTime "9:57:37 PST"]
[Termination "VitaliyBernadskiy won by resignation"]

1. Nf3 {[%clk 0:03:00.9]} 1... Nf6 {[%clk 0:02:59.1]} 2. e3 {[%clk 0:03:01.8]}
2... g6 {[%clk 0:02:59.1]} 3. b3 {[%clk 0:03:02.7]} 3... Bg7 {[%clk 0:02:59.5]}
4. Bb2 {[%clk 0:03:03.6]} 4... O-O {[%clk 0:03:00.1]} 5. d4 {[%clk 0:03:04.5]}
5... d5 {[%clk 0:02:58.3]} 6. Be2 {[%clk 0:03:05.1]} 6... Bg4 {[%clk 0:02:57]}
7. O-O {[%clk 0:03:05.6]} 7... Bxf3 {[%clk 0:02:55.9]} 8. Bxf3 {[%clk
0:03:06.5]} 8... c6 {[%clk 0:02:56.4]} 9. c4 {[%clk 0:03:07.4]} 9... Nbd7 {[%clk
0:02:56.8]} 10. Nc3 {[%clk 0:03:08.1]} 10... e6 {[%clk 0:02:57.1]} 11. Rc1
{[%clk 0:03:08.7]} 11... Re8 {[%clk 0:02:57.1]} 12. g3 {[%clk 0:03:09.3]} 12...
a6 {[%clk 0:02:57.5]} 13. Qd2 {[%clk 0:03:09.5]} 13... b5 {[%clk 0:02:56.4]} 14.
Rfd1 {[%clk 0:03:09.7]} 14... bxc4 {[%clk 0:02:55.5]} 15. bxc4 {[%clk
0:03:10.6]} 15... Nb6 {[%clk 0:02:55.9]} 16. c5 {[%clk 0:03:10.2]} 16... Nc4
{[%clk 0:02:56]} 17. Qc2 {[%clk 0:03:11.1]} 17... e5 {[%clk 0:02:55.6]} 18. Na4
{[%clk 0:03:11.3]} 18... Nxb2 {[%clk 0:02:33.6]} 19. Qxb2 {[%clk 0:03:11.6]}
19... Rb8 {[%clk 0:02:28.9]} 20. Qa3 {[%clk 0:03:11.6]} 20... Qa5 {[%clk
0:02:26.8]} 21. Rc3 {[%clk 0:03:11.5]} 21... exd4 {[%clk 0:02:22.5]} 22. exd4
{[%clk 0:03:12.4]} 22... Ne4 {[%clk 0:02:19.3]} 23. Rcd3 {[%clk 0:03:12.7]}
23... Rb4 {[%clk 0:02:14.6]} 24. Nb6 {[%clk 0:03:12.8]} 24... Qxa3 {[%clk
0:02:14.2]} 25. Rxa3 {[%clk 0:03:13.7]} 25... Bxd4 {[%clk 0:02:10.2]} 26. Bxe4
{[%clk 0:03:13.9]} 26... Rxe4 {[%clk 0:02:10.1]} 27. Rxa6 {[%clk 0:03:13.5]}
27... Rb2 {[%clk 0:02:01.9]} 28. Nd7 {[%clk 0:03:13.5]} 28... Bxf2+ {[%clk
0:01:52.7]} 29. Kg2 {[%clk 0:03:14.1]} 29... Bxc5+ {[%clk 0:01:48.1]} 30. Kh3
{[%clk 0:03:14.4]} 30... Be7 {[%clk 0:01:38.8]} 31. Rxc6 {[%clk 0:03:14.2]}
31... h5 {[%clk 0:01:31.3]} 32. a4 {[%clk 0:03:12.3]} 32... Ree2 {[%clk
0:01:30.8]} 33. Rh1 {[%clk 0:03:12.1]} 33... Kg7 {[%clk 0:01:23]} 34. Rc3 {[%clk
0:03:11.1]} 34... g5 {[%clk 0:01:19.3]} 35. g4 {[%clk 0:03:11.4]} 35... h4
{[%clk 0:01:18.7]} 36. Rd3 {[%clk 0:03:10.5]} 36... Bd6 {[%clk 0:01:18.6]} 0-1

[Event "Early-Titled-Tuesday-Blitz-January-30-2024"]
[Site "Chess.com"]
[Date "2024.01.30"]
[Round "10"]
[White "ATM622"]
[Black "Kostukov_Alex"]
[Result "1-0"]
[WhiteElo "2455"]
[BlackElo "2309"]
[TimeControl "180+1"]
[EndTime "9:58:02 PST"]
[Termination "ATM622 won by resignation"]

1. d4 {[%clk 0:03:00.9]} 1... g6 {[%clk 0:02:57.5]} 2. g3 {[%clk 0:03:00.4]}
2... Bg7 {[%clk 0:02:57.6]} 3. Bg2 {[%clk 0:03:00.6]} 3... d6 {[%clk 0:02:58]}
4. Nf3 {[%clk 0:03:00.7]} 4... e5 {[%clk 0:02:57.9]} 5. dxe5 {[%clk 0:02:59.2]}
5... dxe5 {[%clk 0:02:58.8]} 6. Qxd8+ {[%clk 0:02:59.7]} 6... Kxd8 {[%clk
0:02:59.7]} 7. O-O {[%clk 0:03:00.1]} 7... f6 {[%clk 0:02:59.8]} 8. Rd1+ {[%clk
0:03:00]} 8... Nd7 {[%clk 0:03:00]} 9. b3 {[%clk 0:02:57]} 9... c6 {[%clk
0:02:59.1]} 10. Bb2 {[%clk 0:02:56.2]} 10... Kc7 {[%clk 0:02:57.5]} 11. Nbd2
{[%clk 0:02:55.1]} 11... Nh6 {[%clk 0:02:55.8]} 12. Nc4 {[%clk 0:02:52.8]} 12...
Nf7 {[%clk 0:02:55.6]} 13. a4 {[%clk 0:02:51.7]} 13... a5 {[%clk 0:02:55.2]} 14.
Bh3 {[%clk 0:02:43.3]} 14... Nc5 {[%clk 0:02:49.2]} 15. Bxc8 {[%clk 0:02:39.8]}
15... Raxc8 {[%clk 0:02:50.1]} 16. Nxa5 {[%clk 0:02:37.6]} 16... Rhd8 {[%clk
0:02:18.6]} 17. Nc4 {[%clk 0:02:35.6]} 17... Na6 {[%clk 0:01:56.8]} 18. Bc3
{[%clk 0:02:26.8]} 18... Rxd1+ {[%clk 0:01:38]} 19. Rxd1 {[%clk 0:02:26.3]}
19... Re8 {[%clk 0:01:38.6]} 20. Ba5+ {[%clk 0:02:25]} 20... Kc8 {[%clk
0:01:37.7]} 21. Nb6+ {[%clk 0:02:24.2]} 21... Kb8 {[%clk 0:01:30.9]} 22. Rd7
{[%clk 0:02:23.8]} 22... Rf8 {[%clk 0:01:19.1]} 23. Re7 {[%clk 0:02:21.9]} 23...
f5 {[%clk 0:01:06]} 24. Nd7+ {[%clk 0:02:21.4]} 1-0

[Event "Early-Titled-Tuesday-Blitz-January-30-2024"]
[Site "Chess.com"]
[Date "2024.01.30"]
[Round "10"]
[White "mertfelin"]
[Black "Irishchessman16"]
[Result "0-1"]
[WhiteElo "2274"]
[BlackElo "2487"]
[TimeControl "180+1"]
[EndTime "9:58:24 PST"]
[Termination "Irishchessman16 won by resignation"]

1. e4 {[%clk 0:02:59.4]} 1... d6 {[%clk 0:02:55.4]} 2. d4 {[%clk 0:02:59.2]}
2... c6 {[%clk 0:02:54.9]} 3. Nf3 {[%clk 0:02:59.2]} 3... Qc7 {[%clk 0:02:55.4]}
4. Be3 {[%clk 0:02:58.9]} 4... Nf6 {[%clk 0:02:55.6]} 5. Bd3 {[%clk 0:02:58.5]}
5... Bg4 {[%clk 0:02:54.7]} 6. h3 {[%clk 0:02:58]} 6... Bxf3 {[%clk 0:02:54.6]}
7. Qxf3 {[%clk 0:02:58.3]} 7... e5 {[%clk 0:02:55.2]} 8. c3 {[%clk 0:02:53.8]}
8... Be7 {[%clk 0:02:54.1]} 9. O-O {[%clk 0:02:54.1]} 9... Nbd7 {[%clk
0:02:53.6]} 10. Nd2 {[%clk 0:02:51.8]} 10... O-O {[%clk 0:02:52.4]} 11. Qg3
{[%clk 0:02:48]} 11... Nh5 {[%clk 0:02:50]} 12. Qg4 {[%clk 0:02:41.8]} 12... g6
{[%clk 0:02:49.8]} 13. a4 {[%clk 0:02:36.6]} 13... Ng7 {[%clk 0:02:44.9]} 14. f4
{[%clk 0:02:32.8]} 14... f5 {[%clk 0:02:44.6]} 15. Qe2 {[%clk 0:02:29.8]} 15...
exd4 {[%clk 0:02:37.7]} 16. cxd4 {[%clk 0:02:24.4]} 16... fxe4 {[%clk
0:02:36.6]} 17. Nxe4 {[%clk 0:02:24.6]} 17... d5 {[%clk 0:02:35.6]} 18. Ng5
{[%clk 0:02:17.7]} 18... Bd6 {[%clk 0:02:33.9]} 19. a5 {[%clk 0:02:13.8]} 19...
Rae8 {[%clk 0:02:31.8]} 20. Nxh7 {[%clk 0:01:51.5]} 20... Kxh7 {[%clk
0:02:25.3]} 21. Rae1 {[%clk 0:01:41.1]} 21... Nf5 {[%clk 0:02:21]} 22. Qg4
{[%clk 0:01:37.3]} 22... Nf6 {[%clk 0:02:16.7]} 23. Qg5 {[%clk 0:01:31.5]} 23...
Ne4 {[%clk 0:02:14.6]} 24. Bxe4 {[%clk 0:01:30.8]} 24... Rxe4 {[%clk 0:02:13.3]}
25. Bd2 {[%clk 0:01:30.9]} 25... Qe7 {[%clk 0:02:06]} 26. Qg4 {[%clk 0:01:28.2]}
26... Re8 {[%clk 0:01:57.7]} 27. Qe2 {[%clk 0:01:12.5]} 0-1

[Event "Early-Titled-Tuesday-Blitz-January-30-2024"]
[Site "Chess.com"]
[Date "2024.01.30"]
[Round "10"]
[White "elgrona"]
[Black "GiorgianBarbosa"]
[Result "0-1"]
[WhiteElo "2318"]
[BlackElo "2471"]
[TimeControl "180+1"]
[EndTime "9:58:46 PST"]
[Termination "GiorgianBarbosa won by resignation"]

1. Nf3 {[%clk 0:02:53.5]} 1... Nf6 {[%clk 0:02:59.3]} 2. b3 {[%clk 0:02:49.2]}
2... e6 {[%clk 0:03:00.2]} 3. Bb2 {[%clk 0:02:48]} 3... d5 {[%clk 0:03:01.1]} 4.
e3 {[%clk 0:02:48.6]} 4... Be7 {[%clk 0:03:00]} 5. d4 {[%clk 0:02:46]} 5... O-O
{[%clk 0:03:00.6]} 6. Nbd2 {[%clk 0:02:46.5]} 6... b6 {[%clk 0:03:01.4]} 7. Bd3
{[%clk 0:02:46.8]} 7... Bb7 {[%clk 0:03:02.3]} 8. O-O {[%clk 0:02:47.2]} 8... c5
{[%clk 0:03:02.9]} 9. c4 {[%clk 0:02:47.7]} 9... dxc4 {[%clk 0:03:01.4]} 10.
bxc4 {[%clk 0:02:47]} 10... cxd4 {[%clk 0:03:02]} 11. exd4 {[%clk 0:02:47.2]}
11... Nc6 {[%clk 0:03:02.4]} 12. Rc1 {[%clk 0:02:47.1]} 12... Rc8 {[%clk
0:03:02]} 13. Re1 {[%clk 0:02:47.6]} 13... Rc7 {[%clk 0:03:01.7]} 14. Bb1 {[%clk
0:02:40.1]} 14... Re8 {[%clk 0:02:56.4]} 15. Qb3 {[%clk 0:02:11]} 15... Qc8
{[%clk 0:02:43.5]} 16. Ne5 {[%clk 0:01:43.5]} 16... Nxe5 {[%clk 0:02:40.6]} 17.
dxe5 {[%clk 0:01:43.3]} 17... Nd7 {[%clk 0:02:38]} 18. Qh3 {[%clk 0:01:40]}
18... g6 {[%clk 0:02:33.2]} 19. Re3 {[%clk 0:00:59.6]} 19... Bg5 {[%clk
0:02:23.1]} 20. Rf3 {[%clk 0:00:38.5]} 20... Bxf3 {[%clk 0:02:19.1]} 21. Nxf3
{[%clk 0:00:38.5]} 21... Bxc1 {[%clk 0:02:15.6]} 22. Bxc1 {[%clk 0:00:38.6]}
22... Rxc4 {[%clk 0:02:14.3]} 23. Bd2 {[%clk 0:00:30.5]} 23... Rc1+ {[%clk
0:02:11.5]} 0-1

[Event "Early-Titled-Tuesday-Blitz-January-30-2024"]
[Site "Chess.com"]
[Date "2024.01.30"]
[Round "10"]
[White "djano"]
[Black "tolia123"]
[Result "0-1"]
[WhiteElo "2631"]
[BlackElo "2205"]
[TimeControl "180+1"]
[EndTime "9:58:57 PST"]
[Termination "tolia123 won by resignation"]

1. Nc3 {[%clk 0:03:00.8]} 1... Nf6 {[%clk 0:02:58.4]} 2. e4 {[%clk 0:03:00.1]}
2... d5 {[%clk 0:02:58.8]} 3. e5 {[%clk 0:02:59.3]} 3... Nfd7 {[%clk 0:02:45.5]}
4. e6 {[%clk 0:02:55.7]} 4... fxe6 {[%clk 0:02:44]} 5. f4 {[%clk 0:02:56]} 5...
Nf6 {[%clk 0:02:42.9]} 6. Nf3 {[%clk 0:02:55.7]} 6... c5 {[%clk 0:02:41.8]} 7.
Ne5 {[%clk 0:02:48.9]} 7... Nc6 {[%clk 0:02:41.9]} 8. Bb5 {[%clk 0:02:47.6]}
8... Bd7 {[%clk 0:02:40.2]} 9. Bxc6 {[%clk 0:02:48.1]} 9... Bxc6 {[%clk
0:02:39.7]} 10. O-O {[%clk 0:02:48.3]} 10... Qc7 {[%clk 0:02:38.8]} 11. Qe2
{[%clk 0:02:45.2]} 11... O-O-O {[%clk 0:02:37.6]} 12. Nb5 {[%clk 0:02:39.5]}
12... Bxb5 {[%clk 0:02:34.6]} 13. Qxb5 {[%clk 0:02:39]} 13... Rg8 {[%clk
0:02:29.5]} 14. d3 {[%clk 0:02:33.7]} 14... g6 {[%clk 0:02:24.2]} 15. a4 {[%clk
0:02:30.9]} 15... Bg7 {[%clk 0:02:21.8]} 16. a5 {[%clk 0:02:30.8]} 16... a6
{[%clk 0:02:12.2]} 17. Qa4 {[%clk 0:02:27.3]} 17... Nd7 {[%clk 0:02:11.6]} 18.
Nf7 {[%clk 0:02:24]} 18... Rdf8 {[%clk 0:02:10.4]} 19. Ng5 {[%clk 0:02:24.4]}
19... Qd6 {[%clk 0:02:03.3]} 20. Nxh7 {[%clk 0:02:21.7]} 20... Rf5 {[%clk
0:02:00.9]} 21. c3 {[%clk 0:02:05.4]} 21... Rh8 {[%clk 0:02:01]} 22. Ng5 {[%clk
0:02:05.5]} 22... Rxg5 {[%clk 0:02:01.4]} 23. fxg5 {[%clk 0:02:06.4]} 23...
Qxh2+ {[%clk 0:02:01.6]} 24. Kf2 {[%clk 0:02:06.9]} 24... Rf8+ {[%clk
0:02:01.2]} 25. Ke1 {[%clk 0:02:01.3]} 25... Qg3+ {[%clk 0:02:01]} 26. Kd1
{[%clk 0:01:59.4]} 26... Rxf1+ {[%clk 0:02:00.6]} 27. Kc2 {[%clk 0:02:00.1]}
27... Rf2+ {[%clk 0:01:58.7]} 28. Kb3 {[%clk 0:01:59.4]} 28... Qxd3 {[%clk
0:01:56.1]} 29. Qh4 {[%clk 0:01:55.8]} 29... c4+ {[%clk 0:01:32.4]} 30. Ka3
{[%clk 0:01:51.3]} 30... Bxc3 {[%clk 0:01:12]} 31. Ka2 {[%clk 0:01:49.2]} 31...
Bxb2 {[%clk 0:01:08.7]} 32. Qxf2 {[%clk 0:01:48.4]} 32... Qb3+ {[%clk
0:01:08.8]} 33. Kb1 {[%clk 0:01:46.5]} 33... Bd4+ {[%clk 0:01:09]} 34. Qb2
{[%clk 0:01:45]} 34... Bxb2 {[%clk 0:01:09.2]} 0-1

[Event "Early-Titled-Tuesday-Blitz-January-30-2024"]
[Site "Chess.com"]
[Date "2024.01.30"]
[Round "10"]
[White "dropstoneDP"]
[Black "AlmasRakhmatullaev"]
[Result "1/2-1/2"]
[WhiteElo "3054"]
[BlackElo "2977"]
[TimeControl "180+1"]
[EndTime "9:59:06 PST"]
[Termination "Game drawn by repetition"]

1. e4 {[%clk 0:03:00.9]} 1... e5 {[%clk 0:02:53.9]} 2. Nf3 {[%clk 0:02:59.9]}
2... Nf6 {[%clk 0:02:52.8]} 3. Nxe5 {[%clk 0:02:58.6]} 3... Nxe4 {[%clk
0:02:52.8]} 4. Qe2 {[%clk 0:02:57.6]} 4... Qe7 {[%clk 0:02:52.6]} 5. Qxe4 {[%clk
0:02:56.1]} 5... d6 {[%clk 0:02:53.1]} 6. d4 {[%clk 0:02:56.1]} 6... dxe5 {[%clk
0:02:53.4]} 7. dxe5 {[%clk 0:02:56.1]} 7... Nc6 {[%clk 0:02:53.6]} 8. Nc3 {[%clk
0:02:56.3]} 8... Qxe5 {[%clk 0:02:53.6]} 9. Qxe5+ {[%clk 0:02:56.6]} 9... Nxe5
{[%clk 0:02:54.5]} 10. Nb5 {[%clk 0:02:57]} 10... Bb4+ {[%clk 0:02:54.5]} 11.
Bd2 {[%clk 0:02:57.6]} 11... Bxd2+ {[%clk 0:02:54.7]} 12. Kxd2 {[%clk
0:02:58.5]} 12... Kd8 {[%clk 0:02:55.6]} 13. Re1 {[%clk 0:02:54.1]} 13... Nd7
{[%clk 0:02:55.7]} 14. Bc4 {[%clk 0:02:50]} 14... Rf8 {[%clk 0:02:55.8]} 15. Kc1
{[%clk 0:02:47.9]} 15... Nb6 {[%clk 0:02:54.4]} 16. Bb3 {[%clk 0:02:47.1]} 16...
Bd7 {[%clk 0:02:54.6]} 17. Nc3 {[%clk 0:02:46.9]} 17... c5 {[%clk 0:02:47.9]}
18. Nd5 {[%clk 0:02:35.7]} 18... Nxd5 {[%clk 0:02:33.7]} 19. Bxd5 {[%clk
0:02:36.6]} 19... Kc7 {[%clk 0:02:34.6]} 20. Re3 {[%clk 0:02:23.9]} 20... Rae8
{[%clk 0:02:30]} 21. Rhe1 {[%clk 0:02:21.8]} 21... b6 {[%clk 0:02:04.1]} 22. h4
{[%clk 0:01:59]} 22... h6 {[%clk 0:01:40.9]} 23. Kd2 {[%clk 0:01:49.2]} 23...
Rxe3 {[%clk 0:01:34.2]} 24. Rxe3 {[%clk 0:01:50.1]} 24... Kd6 {[%clk 0:01:34.7]}
25. c4 {[%clk 0:01:27.3]} 25... g5 {[%clk 0:01:31.1]} 26. hxg5 {[%clk
0:01:22.6]} 26... hxg5 {[%clk 0:01:32]} 27. Rd3 {[%clk 0:01:20.8]} 27... Kc7
{[%clk 0:01:25.5]} 28. Re3 {[%clk 0:01:18.4]} 28... Kd6 {[%clk 0:01:25.5]} 29.
Rd3 {[%clk 0:01:18.6]} 29... Kc7 {[%clk 0:01:25.9]} 30. Re3 {[%clk 0:01:10.7]}
30... Kd6 {[%clk 0:01:26.2]} 1/2-1/2

[Event "Early-Titled-Tuesday-Blitz-January-30-2024"]
[Site "Chess.com"]
[Date "2024.01.30"]
[Round "10"]
[White "adotand"]
[Black "Sanyura"]
[Result "1-0"]
[WhiteElo "2835"]
[BlackElo "2651"]
[TimeControl "180+1"]
[EndTime "9:59:22 PST"]
[Termination "adotand won by resignation"]

1. e4 {[%clk 0:03:00.9]} 1... c5 {[%clk 0:02:58.4]} 2. Nf3 {[%clk 0:03:01.3]}
2... e6 {[%clk 0:02:58.6]} 3. d3 {[%clk 0:02:59.4]} 3... d5 {[%clk 0:02:58]} 4.
Nbd2 {[%clk 0:02:59.7]} 4... Nc6 {[%clk 0:02:57.8]} 5. g3 {[%clk 0:03:00.3]}
5... g6 {[%clk 0:02:58.3]} 6. Bg2 {[%clk 0:03:00.7]} 6... Bg7 {[%clk 0:02:58.9]}
7. h4 {[%clk 0:03:01.4]} 7... h6 {[%clk 0:02:58.4]} 8. Qe2 {[%clk 0:03:01.3]}
8... Nge7 {[%clk 0:02:58.6]} 9. c3 {[%clk 0:03:01.8]} 9... b6 {[%clk 0:02:57.4]}
10. O-O {[%clk 0:02:59.8]} 10... Ba6 {[%clk 0:02:57]} 11. e5 {[%clk 0:02:59.9]}
11... Qc7 {[%clk 0:02:53.9]} 12. Re1 {[%clk 0:03:00.4]} 12... g5 {[%clk
0:02:52.7]} 13. hxg5 {[%clk 0:02:52.8]} 13... hxg5 {[%clk 0:02:53.6]} 14. Nxg5
{[%clk 0:02:53.6]} 14... Nxe5 {[%clk 0:02:52.7]} 15. c4 {[%clk 0:02:54]} 15...
O-O-O {[%clk 0:02:49.6]} 16. Ngf3 {[%clk 0:02:45.7]} 16... Nxf3+ {[%clk
0:02:49.6]} 17. Nxf3 {[%clk 0:02:46.6]} 17... Ng6 {[%clk 0:02:44]} 18. Bg5
{[%clk 0:02:44.8]} 18... Rde8 {[%clk 0:02:40.3]} 19. a4 {[%clk 0:02:43.9]} 19...
e5 {[%clk 0:02:29.2]} 20. a5 {[%clk 0:02:40.1]} 20... e4 {[%clk 0:02:29.3]} 21.
axb6 {[%clk 0:02:38.8]} 21... Qxb6 {[%clk 0:02:29.7]} 22. Nd2 {[%clk 0:02:35.1]}
22... f5 {[%clk 0:02:03]} 23. dxe4 {[%clk 0:02:19.7]} 23... dxe4 {[%clk
0:02:03.1]} 24. Ra3 {[%clk 0:02:19.3]} 24... Bd4 {[%clk 0:01:48.1]} 25. Rea1
{[%clk 0:02:18.2]} 25... Bb7 {[%clk 0:01:44.1]} 26. Rb3 {[%clk 0:02:18.5]} 26...
Qc6 {[%clk 0:00:38.4]} 27. Rxa7 {[%clk 0:02:00.9]} 27... e3 {[%clk 0:00:32.2]}
28. fxe3 {[%clk 0:01:59.5]} 28... Rh1+ {[%clk 0:00:31]} 29. Kxh1 {[%clk
0:01:56.9]} 1-0

[Event "Early-Titled-Tuesday-Blitz-January-30-2024"]
[Site "Chess.com"]
[Date "2024.01.30"]
[Round "10"]
[White "otrov-11"]
[Black "alvarorodriguezavila"]
[Result "0-1"]
[WhiteElo "2474"]
[BlackElo "2368"]
[TimeControl "180+1"]
[EndTime "9:59:40 PST"]
[Termination "alvarorodriguezavila won by resignation"]

1. d4 {[%clk 0:02:57.6]} 1... Nf6 {[%clk 0:03:00.2]} 2. c4 {[%clk 0:02:57.7]}
2... Nc6 {[%clk 0:03:00.9]} 3. Nf3 {[%clk 0:02:57]} 3... e6 {[%clk 0:03:00.5]}
4. g3 {[%clk 0:02:57]} 4... d6 {[%clk 0:02:58.7]} 5. Bg2 {[%clk 0:02:56.5]} 5...
g6 {[%clk 0:02:59.4]} 6. O-O {[%clk 0:02:56.1]} 6... Bg7 {[%clk 0:03:00.1]} 7.
Nc3 {[%clk 0:02:56.2]} 7... O-O {[%clk 0:03:00.7]} 8. e4 {[%clk 0:02:56.6]} 8...
Re8 {[%clk 0:03:01.2]} 9. Be3 {[%clk 0:02:55.9]} 9... e5 {[%clk 0:03:01.3]} 10.
h3 {[%clk 0:02:55.4]} 10... exd4 {[%clk 0:02:54.9]} 11. Nxd4 {[%clk 0:02:56.3]}
11... Bd7 {[%clk 0:02:50.9]} 12. Rc1 {[%clk 0:02:55.3]} 12... Nxd4 {[%clk
0:02:50.8]} 13. Bxd4 {[%clk 0:02:55.2]} 13... Bc6 {[%clk 0:02:51.5]} 14. Nd5
{[%clk 0:02:51.3]} 14... Nxe4 {[%clk 0:02:43.2]} 15. Bxg7 {[%clk 0:02:51.1]}
15... Kxg7 {[%clk 0:02:43.8]} 16. Qd4+ {[%clk 0:02:48.2]} 16... Nf6 {[%clk
0:02:44.2]} 17. Rfe1 {[%clk 0:02:48.8]} 17... Re6 {[%clk 0:02:31.2]} 18. h4
{[%clk 0:02:42.1]} 18... h5 {[%clk 0:01:53.4]} 19. Rcd1 {[%clk 0:02:24.4]} 19...
Bxd5 {[%clk 0:01:50.6]} 20. cxd5 {[%clk 0:02:23.2]} 20... Re7 {[%clk 0:01:44.5]}
21. Kf1 {[%clk 0:02:11.7]} 21... Rxe1+ {[%clk 0:01:34.2]} 22. Rxe1 {[%clk
0:02:12.5]} 22... Qd7 {[%clk 0:01:34.4]} 23. f3 {[%clk 0:02:05.5]} 23... Re8
{[%clk 0:01:30.1]} 24. Rxe8 {[%clk 0:02:05]} 24... Qxe8 {[%clk 0:01:30.6]} 25.
Qxa7 {[%clk 0:02:05.6]} 25... Qb5+ {[%clk 0:01:31.3]} 26. Kg1 {[%clk 0:02:03]}
26... Qxb2 {[%clk 0:01:26.6]} 27. Qb8 {[%clk 0:01:43.4]} 27... Nxd5 {[%clk
0:01:19.2]} 28. f4 {[%clk 0:01:38.3]} 28... Ne3 {[%clk 0:01:18.7]} 29. Qxb7
{[%clk 0:01:38.5]} 29... Qc1+ {[%clk 0:00:48.7]} 30. Kh2 {[%clk 0:01:36.6]}
30... Ng4+ {[%clk 0:00:43.3]} 31. Kh3 {[%clk 0:01:35.5]} 31... Qg1 {[%clk
0:00:43.5]} 32. Qb2+ {[%clk 0:01:31.9]} 32... Kh7 {[%clk 0:00:44]} 0-1

[Event "Early-Titled-Tuesday-Blitz-January-30-2024"]
[Site "Chess.com"]
[Date "2024.01.30"]
[Round "10"]
[White "Viktor_Poddubnyi"]
[Black "PawnEatingZombie"]
[Result "1-0"]
[WhiteElo "2306"]
[BlackElo "2155"]
[TimeControl "180+1"]
[EndTime "9:59:51 PST"]
[Termination "Viktor_Poddubnyi won by resignation"]

1. e4 {[%clk 0:03:00.9]} 1... e6 {[%clk 0:02:59.7]} 2. d4 {[%clk 0:03:00.7]}
2... d5 {[%clk 0:03:00.1]} 3. Nd2 {[%clk 0:03:01.3]} 3... c5 {[%clk 0:02:59.1]}
4. exd5 {[%clk 0:03:01.1]} 4... Qxd5 {[%clk 0:02:59.7]} 5. Ngf3 {[%clk
0:03:00.1]} 5... cxd4 {[%clk 0:02:59.9]} 6. Bc4 {[%clk 0:03:00.5]} 6... Qd7
{[%clk 0:02:59.4]} 7. O-O {[%clk 0:03:00]} 7... Nc6 {[%clk 0:02:59.5]} 8. Nb3
{[%clk 0:03:00.4]} 8... a6 {[%clk 0:03:00]} 9. Nbxd4 {[%clk 0:03:00.2]} 9...
Nxd4 {[%clk 0:03:00.9]} 10. Qxd4 {[%clk 0:03:00.1]} 10... Qxd4 {[%clk
0:03:00.8]} 11. Nxd4 {[%clk 0:03:00.4]} 11... Bd6 {[%clk 0:02:59.4]} 12. Rd1
{[%clk 0:02:48.1]} 12... Bd7 {[%clk 0:02:59.1]} 13. Nxe6 {[%clk 0:02:34.9]}
13... Bxh2+ {[%clk 0:02:57.3]} 14. Kxh2 {[%clk 0:02:33.9]} 14... Bxe6 {[%clk
0:02:57.9]} 15. Bxe6 {[%clk 0:02:33.4]} 15... fxe6 {[%clk 0:02:58.8]} 16. Be3
{[%clk 0:02:02.3]} 16... Nf6 {[%clk 0:02:58.1]} 17. Rd6 {[%clk 0:01:55.1]} 17...
Ke7 {[%clk 0:02:31.9]} 18. Rb6 {[%clk 0:01:54.6]} 18... Ng4+ {[%clk 0:02:19.5]}
19. Kg3 {[%clk 0:01:53.5]} 19... Nxe3 {[%clk 0:02:20.4]} 20. Rxb7+ {[%clk
0:01:53.1]} 20... Kf6 {[%clk 0:02:19.7]} 21. fxe3 {[%clk 0:01:53.2]} 21... Rhb8
{[%clk 0:02:14.5]} 22. Rf1+ {[%clk 0:01:45]} 22... Ke5 {[%clk 0:02:08.3]} 23.
Rff7 {[%clk 0:01:35.5]} 23... Rxb7 {[%clk 0:02:03.7]} 24. Rxb7 {[%clk
0:01:33.3]} 24... Rc8 {[%clk 0:01:53]} 25. c3 {[%clk 0:01:30.7]} 25... Ke4
{[%clk 0:01:40.1]} 26. Rxg7 {[%clk 0:00:59.6]} 26... Kxe3 {[%clk 0:01:40]} 27.
Rxh7 {[%clk 0:00:50.1]} 27... Rg8+ {[%clk 0:01:39.5]} 28. Kh2 {[%clk 0:00:49.4]}
28... Kd2 {[%clk 0:01:40]} 29. Re7 {[%clk 0:00:28.6]} 29... Kc2 {[%clk 0:01:39]}
30. Rxe6 {[%clk 0:00:27.3]} 30... Kxb2 {[%clk 0:01:39.4]} 31. Rxa6 {[%clk
0:00:23.1]} 31... Kxc3 {[%clk 0:01:39.4]} 32. Rd6 {[%clk 0:00:19.9]} 1-0

[Event "Early-Titled-Tuesday-Blitz-January-30-2024"]
[Site "Chess.com"]
[Date "2024.01.30"]
[Round "10"]
[White "Quattroporte300"]
[Black "HelvertHernandez"]
[Result "1-0"]
[WhiteElo "2374"]
[BlackElo "1897"]
[TimeControl "180+1"]
[EndTime "9:59:51 PST"]
[Termination "Quattroporte300 won by checkmate"]

1. e4 {[%clk 0:02:56.7]} 1... c5 {[%clk 0:02:58.9]} 2. Nc3 {[%clk 0:02:55.9]}
2... Nc6 {[%clk 0:02:57.6]} 3. g3 {[%clk 0:02:56.2]} 3... g6 {[%clk 0:02:55.9]}
4. Bg2 {[%clk 0:02:57.1]} 4... Bg7 {[%clk 0:02:55]} 5. Nge2 {[%clk 0:02:58]}
5... e6 {[%clk 0:02:53.8]} 6. d3 {[%clk 0:02:57.8]} 6... Nge7 {[%clk 0:02:52.8]}
7. Be3 {[%clk 0:02:58.4]} 7... d6 {[%clk 0:02:51.5]} 8. Qd2 {[%clk 0:02:58.1]}
8... Nd4 {[%clk 0:02:50.4]} 9. O-O-O {[%clk 0:02:57.7]} 9... Bd7 {[%clk
0:02:42.9]} 10. h4 {[%clk 0:02:48.7]} 10... b5 {[%clk 0:02:40]} 11. h5 {[%clk
0:02:42.3]} 11... b4 {[%clk 0:02:32.5]} 12. Nb1 {[%clk 0:02:36.9]} 12... a5
{[%clk 0:02:10.7]} 13. Nxd4 {[%clk 0:02:13.9]} 13... cxd4 {[%clk 0:02:04.9]} 14.
Bh6 {[%clk 0:02:13.6]} 14... Bxh6 {[%clk 0:01:58.4]} 15. Qxh6 {[%clk 0:02:11.7]}
15... Qc7 {[%clk 0:01:52.4]} 16. Qg7 {[%clk 0:02:08.1]} 16... Rg8 {[%clk
0:01:49.6]} 17. Qxd4 {[%clk 0:02:08.3]} 17... Rc8 {[%clk 0:01:45.2]} 18. Rd2
{[%clk 0:02:08.5]} 18... Nc6 {[%clk 0:01:36.2]} 19. Qf6 {[%clk 0:02:03.6]} 19...
e5 {[%clk 0:01:28.8]} 20. hxg6 {[%clk 0:02:02.7]} 20... hxg6 {[%clk 0:01:24.2]}
21. Rh7 {[%clk 0:01:58.6]} 21... Be6 {[%clk 0:01:19.5]} 22. Rh8 {[%clk
0:01:58.7]} 22... Kd7 {[%clk 0:01:13.8]} 23. Rxg8 {[%clk 0:01:57.5]} 23... Rxg8
{[%clk 0:01:12.7]} 24. Bh3 {[%clk 0:01:53.4]} 24... Nd4 {[%clk 0:01:11.2]} 25.
Bxe6+ {[%clk 0:01:51.4]} 25... Ke8 {[%clk 0:00:33.4]} 26. Bc4 {[%clk 0:01:41.3]}
26... a4 {[%clk 0:00:26.7]} 27. c3 {[%clk 0:01:40.7]} 27... bxc3 {[%clk
0:00:19.2]} 28. Nxc3 {[%clk 0:01:40.3]} 28... a3 {[%clk 0:00:14.2]} 29. Nd5
{[%clk 0:01:40.1]} 29... axb2+ {[%clk 0:00:12.9]} 30. Rxb2 {[%clk 0:01:41]}
30... Qa5 {[%clk 0:00:10.2]} 31. Qe7# {[%clk 0:01:40.4]} 1-0